fUSD/lending_fUSD_20240104
["ID","MTS","AMOUNT","RATE_DAILY","PERIOD"]
[310168768,1704387043742,-500.0,0.0003315,2]
[310168771,1704387043753,-548.10225227,0.0003315,2]
[310168772,1704387043763,-500.0,0.0003315,2]
[310168775,1704387043773,-500.0,0.0003315,2]
[310168777,1704387043783,-598.96152035,0.0003315,2]
[310168779,1704387043793,-504.97793992,0.0003315,2]
[310168781,1704387043803,-500.0,0.0003315,2]
[310168782,1704387043813,-504.62424608,0.0003315,2]
[310168784,1704387043823,-500.0,0.0003315,2]
[310168787,1704387043833,-500.0,0.0003315,2]
[310168788,1704387043846,-500.0,0.0003315,2]
[310168791,1704387043856,-500.0,0.0003315,2]
[310168792,1704387043866,-500.0,0.0003315,2]
[310168794,1704387043876,-500.0,0.0003315,2]
[310168796,1704387043886,-507.69,0.0003315,2]
[310168798,1704387043896,-500.0,0.0003315,2]
[310168800,1704387043905,-500.0,0.0003315,2]
[310168802,1704387043915,-500.0,0.0003315,2]
[310168804,1704387043924,-500.0,0.0003315,2]
[310168807,1704387043934,-500.0,0.0003315,2]
[310168809,1704387043943,-500.0,0.0003315,2]
[310168810,1704387043954,-175.85703757,0.0003315,2]
[310168812,1704387043964,-504.67107522,0.0003315,2]
[310168814,1704387043974,-500.0,0.0003315,2]
[310168817,1704387043985,-500.0,0.0003315,2]
[310168818,1704387043995,-500.0,0.0003315,2]
[310168821,1704387044005,-500.0,0.0003315,2]
[310168822,1704387044015,-500.0,0.0003315,2]
[310168824,1704387044025,-500.0,0.0003315,2]
[310168826,1704387044034,-558.96897696,0.0003315,2]
[310168829,1704387044045,-500.0,0.0003315,2]
[310168830,1704387044056,-500.0,0.0003315,2]
[310168832,1704387044066,-500.0,0.0003315,2]
[310168834,1704387044076,-500.0,0.0003315,2]
[310168836,1704387044086,-500.0,0.0003315,2]
[310168838,1704387044098,-500.0,0.0003315,2]
[310168840,1704387044107,-500.0,0.0003315,2]
[310168842,1704387044117,-500.0,0.0003315,2]
[310168844,1704387044126,-500.0,0.0003315,2]
[310168846,1704387044136,-500.0,0.0003315,2]
[310168848,1704387044145,-500.0,0.0003315,2]
[310168850,1704387044155,-500.0,0.0003315,2]
[310168852,1704387044165,-500.0,0.0003315,2]
[310168854,1704387044174,-500.0,0.0003315,2]
[310168856,1704387044184,-500.0,0.0003315,2]
[310168858,1704387044194,-500.0,0.0003315,2]
[310168860,1704387044203,-500.0,0.0003315,2]
[310168862,1704387044212,-500.0,0.0003315,2]
[310168864,1704387044222,-500.0,0.0003315,2]
[310168866,1704387044231,-500.0,0.0003315,2]
[310168868,1704387044241,-500.0,0.0003315,2]
[310168870,1704387044250,-500.0,0.0003315,2]
[310168872,1704387044260,-500.0,0.0003315,2]
[310168874,1704387044269,-500.0,0.0003315,2]
[310168876,1704387044278,-302.63223913,0.0003315,2]
[310168878,1704387044288,-500.0,0.0003315,2]
[310168880,1704387044298,-500.0,0.0003315,2]
[310168882,1704387044307,-6064.13,0.0003315,2]
[310168884,1704387044316,-500.0,0.0003315,2]
[310168886,1704387044326,-500.0,0.0003315,2]
[310168888,1704387044335,-500.0,0.0003315,2]
[310168890,1704387044346,-500.0,0.0003315,2]
[310168892,1704387044356,-556.14,0.0003315,2]
[310168894,1704387044365,-500.0,0.0003315,2]
[310168896,1704387044379,-500.0,0.0003315,2]
[310168898,1704387044388,-500.0,0.0003315,2]
[310168900,1704387044397,-866.85,0.0003315,2]
[310168902,1704387044407,-500.0,0.0003315,2]
[310168904,1704387044416,-500.0,0.0003315,2]
[310168906,1704387044426,-500.0,0.0003315,2]
[310168908,1704387044435,-500.0,0.0003315,2]
[310168910,1704387044444,-519.6,0.0003315,2]
[310168912,1704387044453,-418.33088989,0.0003315,2]
[310168914,1704387044463,-1348.96,0.0003315,2]
[310168916,1704387044473,-500.0,0.0003315,2]
[310168918,1704387044482,-1142.06,0.0003315,2]
[310168921,1704387044493,-965.52,0.0003315,2]
[310168923,1704387044503,-500.0,0.0003315,2]
[310168925,1704387044512,-2324.63,0.0003315,2]
[310168927,1704387044522,-500.0,0.0003315,2]
[310168929,1704387044531,-1649.27,0.0003315,2]
[310168931,1704387044540,-500.0,0.0003315,2]
[310168933,1704387044550,-500.0,0.0003315,2]
[310168935,1704387044561,-500.0,0.0003315,2]
[310168937,1704387044570,-500.0,0.0003315,2]
[310168939,1704387044580,-500.0,0.0003315,2]
[310168941,1704387044590,-500.0,0.0003315,2]
[310168943,1704387044600,-4041.42,0.0003315,2]
[310168945,1704387044609,-3512.08,0.0003315,2]
[310168947,1704387044618,-500.0,0.0003315,2]
[310168949,1704387044628,-500.0,0.0003315,2]
[310168951,1704387044638,-500.0,0.0003315,2]
[310168953,1704387044647,-1571.18,0.0003315,2]
[310168955,1704387044656,-790.79,0.0003315,2]
[310168957,1704387044665,-1096.78,0.0003315,2]
[310168959,1704387044674,-500.0,0.0003315,2]
[310168961,1704387044683,-500.0,0.0003315,2]
[310168963,1704387044692,-616.23764925,0.0003315,2]
[310168965,1704387044701,-500.0,0.0003315,2]
[310168967,1704387044711,-1597.25,0.0003315,2]
[310168969,1704387044720,-399.45,0.0003315,2]
[310168971,1704387044730,-500.0,0.0003315,2]
[310168973,1704387044739,-500.0,0.0003315,2]
[310168976,1704387044749,-500.0,0.0003315,2]
[310168978,1704387044759,-2242.23,0.0003315,2]
[310168980,1704387044769,-500.0,0.0003315,2]
[310168982,1704387044778,-500.0,0.0003315,2]
[310168984,1704387044787,-500.0,0.0003315,2]
[310168986,1704387044797,-500.0,0.0003315,2]
[310168987,1704387044806,-432.45,0.0003315,2]
[310168990,1704387044816,-500.0,0.0003315,2]
[310168991,1704387044825,-500.0,0.0003315,2]
[310168994,1704387044835,-1120.22,0.0003315,2]
[310168996,1704387044845,-1243.11,0.0003315,2]
[310168998,1704387044855,-420.04125711,0.0003315,2]
[310169000,1704387044865,-685.07,0.0003315,2]
[310169002,1704387044875,-500.0,0.0003315,2]
[310169004,1704387044885,-596.93810844,0.0003315,2]
[310169006,1704387044894,-500.0,0.0003315,2]
[310169008,1704387044904,-500.0,0.0003315,2]
[310169010,1704387044914,-500.0,0.0003315,2]
[310169012,1704387044923,-500.0,0.0003315,2]
[310169014,1704387044933,-1459.02,0.0003315,2]
[310169016,1704387044943,-500.0,0.0003315,2]
[310169018,1704387044953,-3337.4,0.0003315,2]
[310169020,1704387044963,-587.56,0.0003315,2]
[310169022,1704387044972,-500.0,0.0003315,2]
[310169024,1704387044981,-500.0,0.0003315,2]
[310169026,1704387044990,-1169.43,0.0003315,2]
[310169028,1704387044999,-500.0,0.0003315,2]
[310169030,1704387045008,-500.0,0.0003315,2]
[310169031,1704387045017,-977.43,0.0003315,2]
[310169034,1704387045027,-500.0,0.0003315,2]
[310169036,1704387045037,-1254.68,0.0003315,2]
[310169038,1704387045046,-9381.09,0.0003315,2]
[310169040,1704387045055,-500.0,0.0003315,2]
[310169042,1704387045064,-500.0,0.0003315,2]
[310169044,1704387045073,-3545.15,0.0003315,2]
[310169046,1704387045084,-500.0,0.0003315,2]
[310169048,1704387045093,-500.0,0.0003315,2]
[310169050,1704387045102,-500.0,0.0003315,2]
[310169052,1704387045111,-500.0,0.0003315,2]
[310169054,1704387045120,-500.0,0.0003315,2]
[310169056,1704387045129,-500.0,0.0003315,2]
[310169058,1704387045138,-500.0,0.0003315,2]
[310169060,1704387045147,-739.42,0.0003315,2]
[310169062,1704387045156,-500.0,0.0003315,2]
[310169064,1704387045166,-500.0,0.0003315,2]
[310169066,1704387045174,-500.0,0.0003315,2]
[310169068,1704387045183,-500.0,0.0003315,2]
[310169070,1704387045192,-1879.53,0.0003315,2]
[310169072,1704387045201,-1434.27,0.0003315,2]
[310169074,1704387045210,-500.0,0.0003315,2]
[310169076,1704387045219,-500.0,0.0003315,2]
[310169078,1704387045228,-500.0,0.0003315,2]
[310169080,1704387045237,-588.68,0.0003315,2]
[310169082,1704387045246,-500.0,0.0003315,2]
[310169083,1704387045255,-500.0,0.0003315,2]
[310169085,1704387045265,-500.0,0.0003315,2]
[310169087,1704387045274,-500.0,0.0003315,2]
[310169089,1704387045284,-1466.29,0.0003315,2]
[310169091,1704387045294,-500.0,0.0003315,2]
[310169093,1704387045303,-500.0,0.0003315,2]
[310169095,1704387045313,-500.0,0.0003315,2]
[310169097,1704387045322,-500.0,0.0003315,2]
[310169099,1704387045331,-500.0,0.0003315,2]
[310169101,1704387045340,-500.0,0.0003315,2]
[310169103,1704387045350,-500.0,0.0003315,2]
[310169105,1704387045359,-992.03,0.0003315,2]
[310169107,1704387045369,-500.0,0.0003315,2]
[310169109,1704387045382,-500.0,0.0003315,2]
[310169111,1704387045391,-500.0,0.0003315,2]
[310169113,1704387045400,-1033.59,0.0003315,2]
[310169115,1704387045412,-500.0,0.0003315,2]
[310169117,1704387045422,-500.0,0.0003315,2]
[310169120,1704387045432,-1201.04,0.0003315,2]
[310169121,1704387045441,-500.0,0.0003315,2]
[310169124,1704387045450,-500.0,0.0003315,2]
[310169126,1704387045460,-500.0,0.0003315,2]
[310169127,1704387045470,-500.0,0.0003315,2]
[310169130,1704387045480,-500.0,0.0003315,2]
[310169132,1704387045489,-500.0,0.0003315,2]
[310169134,1704387045498,-500.0,0.0003315,2]
[310169136,1704387045508,-500.0,0.0003315,2]
[310169137,1704387045517,-4171.26,0.0003315,2]
[310169139,1704387045527,-500.0,0.0003315,2]
[310169141,1704387045536,-500.0,0.0003315,2]
[310169143,1704387045545,-239.80759157,0.0003315,2]
[310169146,1704387045562,-260.19240843,0.0003315,2]
[310169148,1704387045571,-2166.82,0.0003315,2]
[310169150,1704387045580,-2349.11,0.0003315,2]
[310169152,1704387045589,-523.86,0.0003315,2]
[310169154,1704387045600,-500.0,0.0003315,2]
[310169156,1704387045609,-500.0,0.0003315,2]
[310169158,1704387045619,-692.86,0.0003315,2]
[310169160,1704387045629,-754.91,0.0003315,2]
[310169162,1704387045638,-5441.26,0.0003315,2]
[310169164,1704387045647,-2546.5,0.0003315,2]
[310169166,1704387045657,-653.38,0.0003315,2]
[310169168,1704387045666,-500.0,0.0003315,2]
[310169170,1704387045675,-588.1,0.0003315,2]
[310169172,1704387045684,-518.48,0.0003315,2]
[310169174,1704387045693,-500.0,0.0003315,2]
[310169176,1704387045702,-500.0,0.0003315,2]
[310169178,1704387045712,-500.0,0.0003315,2]
[310169180,1704387045721,-1807.01,0.0003315,2]
[310169183,1704387045731,-1302.38,0.0003315,2]
[310169184,1704387045740,-500.0,0.0003315,2]
[310169186,1704387045749,-500.0,0.0003315,2]
[310169188,1704387045759,-500.0,0.0003315,2]
[310169190,1704387045768,-2560.04,0.0003315,2]
[310169193,1704387045778,-500.0,0.0003315,2]
[310169195,1704387045787,-500.0,0.0003315,2]
[310169197,1704387045796,-500.0,0.0003315,2]
[310169199,1704387045806,-779.87,0.0003315,2]
[310169200,1704387045815,-500.0,0.0003315,2]
[310169202,1704387045824,-734.27,0.0003315,2]
[310169204,1704387045833,-1365.24,0.0003315,2]
[310169207,1704387045844,-870.65,0.0003315,2]
[310169208,1704387045853,-1231.92,0.0003315,2]
[310169210,1704387045863,-2217.69,0.0003315,2]
[310169212,1704387045872,-500.0,0.0003315,2]
[310169215,1704387045882,-500.0,0.0003315,2]
[310169217,1704387045895,-500.0,0.0003315,2]
[310169218,1704387045905,-1032.63,0.0003315,2]
[310169219,1704387045914,-1017.62,0.0003315,2]
[310169220,1704387045923,-534.29,0.0003315,2]
[310169221,1704387045933,-500.0,0.0003315,2]
[310169222,1704387045943,-500.0,0.0003315,2]
[310169223,1704387045952,-906.71,0.0003315,2]
[310169224,1704387045962,-596.31,0.0003315,2]
[310169225,1704387045971,-2137.75,0.0003315,2]
[310169226,1704387045981,-500.0,0.0003315,2]
[310169227,1704387045991,-3323.94,0.0003315,2]
[310169229,1704387046000,-500.0,0.0003315,2]
[310169231,1704387046010,-509.24,0.0003315,2]
[310169233,1704387046019,-618.62,0.0003315,2]
[310169235,1704387046028,-500.0,0.0003315,2]
[310169237,1704387046037,-635.64,0.0003315,2]
[310169239,1704387046046,-7113.29,0.0003315,2]
[310169241,1704387046055,-500.0,0.0003315,2]
[310169243,1704387046064,-3513.86,0.0003315,2]
[310169245,1704387046073,-212.036716,0.0003315,2]
[310169247,1704387046082,-500.0,0.0003315,2]
[310169249,1704387046091,-500.0,0.0003315,2]
[310169251,1704387046101,-500.0,0.0003315,2]
[310169253,1704387046109,-1511.06,0.0003315,2]
[310169255,1704387046118,-1218.23,0.0003315,2]
[310169256,1704387046128,-688.17,0.0003315,2]
[310169258,1704387046137,-3116.33534759,0.0003315,2]
[310169274,1704387046220,-5020.02465241,0.0003315,2]
[310169279,1704387046264,-650.31,0.0003315,2]
[310169281,1704387046273,-500.0,0.0003315,2]
[310169283,1704387046284,-500.0,0.0003315,2]
[310169286,1704387046294,-500.0,0.0003315,2]
[310169289,1704387046303,-662.77,0.0003315,2]
[310169292,1704387046313,-583.86,0.0003315,2]
[310169295,1704387046322,-500.0,0.0003315,2]
[310169299,1704387046331,-500.0,0.0003315,2]
[310169302,1704387046341,-694.23,0.0003315,2]
[310169306,1704387046351,-500.0,0.0003315,2]
[310169310,1704387046360,-500.0,0.0003315,2]
[310169311,1704387046371,-500.0,0.0003315,2]
[310169314,1704387046382,-3401.65,0.0003315,2]
[310169317,1704387046392,-500.0,0.0003315,2]
[310169320,1704387046401,-2434.82,0.0003315,2]
[310169322,1704387046410,-500.0,0.0003315,2]
[310169324,1704387046419,-500.0,0.0003315,2]
[310169326,1704387046429,-500.0,0.0003315,2]
[310169328,1704387046438,-500.0,0.0003315,2]
[310169331,1704387046448,-500.0,0.0003315,2]
[310169334,1704387046457,-321.3765875,0.0003315,2]
[310169337,1704387046467,-1142.39,0.0003315,2]
[310169340,1704387046476,-1301.86,0.0003315,2]
[310169343,1704387046485,-500.0,0.0003315,2]
[310169346,1704387046495,-612.21686194,0.0003315,2]
[310169349,1704387046504,-500.0,0.0003315,2]
[310169351,1704387046514,-1696.03,0.0003315,2]
[310169353,1704387046523,-500.0,0.0003315,2]
[310169355,1704387046533,-500.0,0.0003315,2]
[310169357,1704387046542,-500.0,0.0003315,2]
[310169359,1704387046551,-511.03,0.0003315,2]
[310169361,1704387046561,-500.0,0.0003315,2]
[310169364,1704387046571,-500.0,0.0003315,2]
[310169366,1704387046580,-1500.08,0.0003315,2]
[310169367,1704387046590,-1916.77,0.0003315,2]
[310169370,1704387046601,-500.0,0.0003315,2]
[310169372,1704387046611,-1224.87,0.0003315,2]
[310169374,1704387046620,-500.0,0.0003315,2]
[310169376,1704387046629,-500.0,0.0003315,2]
[310169378,1704387046639,-500.0,0.0003315,2]
[310169380,1704387046649,-500.0,0.0003315,2]
[310169382,1704387046658,-675.56,0.0003315,2]
[310169383,1704387046667,-500.0,0.0003315,2]
[310169386,1704387046677,-1372.24,0.0003315,2]
[310169388,1704387046687,-500.0,0.0003315,2]
[310169389,1704387046700,-1233.69,0.0003315,2]
[310169391,1704387046710,-500.0,0.0003315,2]
[310169393,1704387046719,-704.97,0.0003315,2]
[310169396,1704387046730,-500.0,0.0003315,2]
[310169398,1704387046740,-500.0,0.0003315,2]
[310169400,1704387046750,-1271.98,0.0003315,2]
[310169402,1704387046760,-1984.85,0.0003315,2]
[310169404,1704387046769,-500.0,0.0003315,2]
[310169406,1704387046779,-2344.08,0.0003315,2]
[310169408,1704387046788,-1111.22,0.0003315,2]
[310169410,1704387046798,-500.0,0.0003315,2]
[310169412,1704387046808,-500.0,0.0003315,2]
[310169414,1704387046818,-500.0,0.0003315,2]
[310169416,1704387046827,-236.18,0.00033242,2]
[310169418,1704387046837,-185.32,0.00033248,2]
[310169420,1704387046848,-540.4,0.00033255,2]
[310169422,1704387046857,-339.01516017,0.00033324,2]
[310169424,1704387046867,-542.69667824,0.00033339,7]
[310169426,1704387046878,-384.38040922,0.00033339,7]
[310169428,1704387046887,-1543.88699624,0.00033362,7]
[310169430,1704387046898,-740.95314133,0.00033362,7]
[310169432,1704387046907,-390.12376067,0.00033362,7]
[310169434,1704387046917,-882.09623823,0.00033362,6]
[310169436,1704387046926,-4067.25774393,0.00033416,14]
[310169439,1704387046940,-236.18,0.00033416,2]
[310169440,1704387046949,-25873.32126213,0.00033423,4]
[310169443,1704387046959,-500.0,0.00033423,2]
[310169445,1704387046968,-1121.11,0.00033423,2]
[310169447,1704387046977,-500.0,0.00033423,2]
[310169449,1704387046986,-500.0,0.00033424,2]
[310169451,1704387046997,-500.0,0.00033424,2]
[310169453,1704387047006,-500.0,0.00033424,2]
[310169455,1704387047016,-500.0,0.00033424,2]
[310169457,1704387047026,-495.72325348,0.00033424,2]
[310169459,1704387047035,-500.0,0.00033424,2]
[310169461,1704387047045,-500.0,0.00033424,2]
[310169463,1704387047054,-500.0,0.00033424,2]
[310169465,1704387047063,-500.0,0.00033424,2]
[310169467,1704387047072,-500.0,0.00033424,2]
[310169469,1704387047081,-500.0,0.00033424,2]
[310169471,1704387047091,-500.0,0.00033424,2]
[310169473,1704387047101,-500.0,0.00033424,2]
[310169475,1704387047110,-500.0,0.00033424,2]
[310169477,1704387047119,-500.0,0.00033424,2]
[310169479,1704387047129,-587.46,0.00033424,2]
[310169481,1704387047138,-500.0,0.00033424,2]
[310169483,1704387047147,-500.0,0.00033424,2]
[310169485,1704387047157,-500.0,0.00033424,2]
[310169487,1704387047166,-500.0,0.00033424,2]
[310169489,1704387047175,-500.0,0.00033424,2]
[310169491,1704387047185,-629.31,0.00033424,2]
[310169493,1704387047194,-500.0,0.00033424,2]
[310169495,1704387047204,-500.0,0.00033424,2]
[310169497,1704387047213,-500.0,0.00033424,2]
[310169499,1704387047223,-500.0,0.00033424,2]
[310169501,1704387047232,-415.29748078,0.00033424,2]
[310169503,1704387047242,-500.0,0.00033424,2]
[310169505,1704387047251,-500.0,0.00033424,2]
[310169507,1704387047260,-500.0,0.00033424,2]
[310169509,1704387047269,-500.0,0.00033424,2]
[310169511,1704387047279,-500.0,0.00033424,2]
[310169513,1704387047289,-500.0,0.00033424,2]
[310169515,1704387047299,-261.78053619,0.00033424,2]
[310169517,1704387047309,-500.0,0.00033424,2]
[310169519,1704387047319,-500.0,0.00033424,2]
[310169521,1704387047328,-500.0,0.00033424,2]
[310169523,1704387047337,-511.94758204,0.00033424,30]
[310169525,1704387047347,-655.43,0.00033424,2]
[310169527,1704387047357,-500.0,0.00033424,2]
[310169529,1704387047367,-500.0,0.00033424,2]
[310169531,1704387047378,-500.0,0.00033424,2]
[310169533,1704387047390,-500.0,0.00033424,2]
[310169536,1704387047399,-442.52429558,0.00033424,2]
[310169537,1704387047409,-500.0,0.00033424,2]
[310169540,1704387047418,-500.0,0.00033424,2]
[310169542,1704387047429,-500.0,0.00033424,2]
[310169544,1704387047438,-724.09,0.00033424,2]
[310169546,1704387047447,-500.0,0.00033424,2]
[310169548,1704387047457,-500.0,0.00033424,2]
[310169550,1704387047466,-500.0,0.00033424,2]
[310169552,1704387047475,-500.0,0.00033424,2]
[310169553,1704387047485,-500.0,0.00033424,2]
[310169556,1704387047494,-500.0,0.00033424,2]
[310169557,1704387047503,-500.0,0.00033424,2]
[310169560,1704387047513,-500.0,0.00033424,2]
[310169561,1704387047522,-500.0,0.00033424,2]
[310169564,1704387047532,-500.0,0.00033424,2]
[310169566,1704387047542,-500.0,0.00033424,2]
[310169568,1704387047554,-500.0,0.00033424,2]
[310169570,1704387047564,-500.0,0.00033424,2]
[310169572,1704387047573,-500.0,0.00033424,2]
[310169574,1704387047583,-500.0,0.00033424,2]
[310169576,1704387047592,-587.87,0.00033424,2]
[310169578,1704387047601,-500.0,0.00033424,2]
[310169580,1704387047611,-500.0,0.00033424,2]
[310169581,1704387047620,-500.0,0.00033424,2]
[310169583,1704387047630,-764.61,0.00033424,2]
[310169585,1704387047639,-500.0,0.00033424,2]
[310169587,1704387047649,-500.0,0.00033424,2]
[310169589,1704387047658,-500.0,0.00033424,2]
[310169591,1704387047667,-500.0,0.00033424,2]
[310169594,1704387047677,-500.0,0.00033424,2]
[310169595,1704387047686,-500.0,0.00033424,2]
[310169598,1704387047696,-500.0,0.00033424,2]
[310169600,1704387047705,-500.0,0.00033424,2]
[310169601,1704387047715,-500.0,0.00033424,2]
[310169603,1704387047724,-500.0,0.00033424,2]
[310169606,1704387047734,-500.0,0.00033424,2]
[310169608,1704387047743,-500.0,0.00033424,2]
[310169609,1704387047753,-500.0,0.00033424,2]
[310169612,1704387047763,-185.33940449,0.00033424,2]
[310169627,1704387047903,-401.17059551,0.00033424,2]
[310169629,1704387047913,-500.0,0.00033424,2]
[310169631,1704387047922,-500.0,0.00033424,2]
[310169633,1704387047931,-500.0,0.00033424,2]
[310169635,1704387047941,-500.0,0.00033424,2]
[310169637,1704387047950,-500.0,0.00033424,2]
[310169639,1704387047959,-500.0,0.00033424,2]
[310169641,1704387047970,-500.0,0.00033424,2]
[310169643,1704387047979,-500.0,0.00033424,2]
[310169645,1704387047989,-500.0,0.00033424,2]
[310169647,1704387047998,-500.0,0.00033424,2]
[310169649,1704387048008,-500.0,0.00033424,2]
[310169651,1704387048017,-500.0,0.00033424,2]
[310169653,1704387048026,-500.0,0.00033424,2]
[310169655,1704387048037,-500.0,0.00033424,2]
[310169657,1704387048046,-547.68987333,0.00033424,2]
[310169659,1704387048056,-500.0,0.00033424,2]
[310169661,1704387048065,-525.5423336,0.00033424,2]
[310169663,1704387048075,-500.0,0.00033424,2]
[310169665,1704387048084,-500.0,0.00033424,2]
[310169667,1704387048095,-500.0,0.00033424,2]
[310169669,1704387048105,-500.0,0.00033424,2]
[310169671,1704387048116,-500.0,0.00033424,2]
[310169673,1704387048125,-500.0,0.00033424,2]
[310169675,1704387048135,-500.0,0.00033424,2]
[310169678,1704387048145,-500.0,0.00033424,2]
[310169680,1704387048154,-500.0,0.00033424,2]
[310169682,1704387048164,-500.0,0.00033424,2]
[310169684,1704387048173,-500.0,0.00033424,2]
[310169686,1704387048182,-500.0,0.00033424,2]
[310169688,1704387048192,-500.0,0.00033424,2]
[310169690,1704387048201,-500.0,0.00033424,2]
[310169692,1704387048210,-238.83114574,0.00033424,2]
[310169694,1704387048219,-500.0,0.00033424,2]
[310169696,1704387048229,-500.0,0.00033424,2]
[310169698,1704387048238,-500.0,0.00033424,2]
[310169700,1704387048247,-500.0,0.00033424,2]
[310169702,1704387048257,-500.0,0.00033424,2]
[310169704,1704387048266,-500.0,0.00033424,2]
[310169706,1704387048276,-500.0,0.00033424,2]
[310169708,1704387048286,-500.0,0.00033424,2]
[310169710,1704387048296,-500.0,0.00033424,2]
[310169712,1704387048305,-463.26567745,0.00033424,2]
[310169714,1704387048315,-500.0,0.00033424,2]
[310169716,1704387048324,-500.0,0.00033424,2]
[310169718,1704387048334,-500.0,0.00033424,2]
[310169720,1704387048343,-500.0,0.00033424,2]
[310169722,1704387048352,-500.0,0.00033424,2]
[310169724,1704387048361,-500.0,0.00033424,2]
[310169726,1704387048370,-500.0,0.00033424,2]
[310169728,1704387048379,-500.0,0.00033424,2]
[310169730,1704387048392,-500.0,0.00033424,2]
[310169732,1704387048402,-500.0,0.00033424,2]
[310169734,1704387048411,-500.0,0.00033424,2]
[310169736,1704387048421,-500.0,0.00033424,2]
[310169738,1704387048430,-500.0,0.00033424,2]
[310169740,1704387048439,-500.0,0.00033424,2]
[310169742,1704387048449,-500.0,0.00033424,2]
[310169745,1704387048460,-500.0,0.00033424,2]
[310169747,1704387048470,-500.0,0.00033424,2]
[310169778,1704387048846,-500.0,0.00033424,2]
[310169780,1704387048857,-500.0,0.00033424,2]
[310169783,1704387048873,-500.0,0.00033424,2]
[310169785,1704387048883,-500.0,0.00033424,2]
[310169787,1704387048893,-500.0,0.00033424,2]
[310169789,1704387048903,-500.0,0.00033424,2]
[310169791,1704387048913,-570.84797107,0.00033424,2]
[310169793,1704387048922,-240.02967439,0.00033424,2]
[310169795,1704387048931,-500.0,0.00033424,2]
[310169797,1704387048941,-500.0,0.00033424,2]
[310169799,1704387048951,-500.0,0.00033424,2]
[310169801,1704387048961,-500.0,0.00033424,2]
[310169803,1704387048970,-500.0,0.00033424,2]
[310169805,1704387048980,-500.0,0.00033424,2]
[310169807,1704387048990,-500.0,0.00033424,2]
[310169809,1704387048999,-500.0,0.00033424,2]
[310169811,1704387049009,-434.34045441,0.00033424,2]
[310169813,1704387049019,-500.0,0.00033424,2]
[310169815,1704387049029,-540.27,0.00033424,2]
[310169817,1704387049038,-500.0,0.00033424,2]
[310169819,1704387049048,-500.0,0.00033424,2]
[310169821,1704387049058,-500.0,0.00033424,2]
[310169823,1704387049068,-535.47745542,0.00033424,2]
[310169825,1704387049078,-500.0,0.00033424,2]
[310169827,1704387049087,-500.0,0.00033424,2]
[310169829,1704387049097,-500.0,0.00033424,2]
[310169832,1704387049107,-150.0,0.00033424,2]
[310169834,1704387049116,-500.0,0.00033424,2]
[310169836,1704387049127,-500.0,0.00033424,2]
[310169838,1704387049137,-500.0,0.00033424,2]
[310169840,1704387049146,-500.0,0.00033424,2]
[310169842,1704387049156,-500.0,0.00033424,2]
[310169844,1704387049165,-500.0,0.00033424,2]